bitfinex-derivatives/quotes_BTCF0:USTF0_20241015
["timestamp","ask_amount","ask_price","bid_price","bid_amount"]
[1728982848247,0.3608,65800.0,65799.0,0.080423]
[1728982851144,1.8612,65808.0,65799.0,0.080423]
[1728982851448,1.5004,65808.0,65806.0,0.18]
[1728982851648,0.0004,65808.0,65807.0,0.076413]
[1728982852047,0.0004,65808.0,65807.0,0.145013]
[1728982856046,1.5,65815.0,65807.0,0.63019112]
[1728982856252,1.576004,65815.0,65814.0,0.0004]
[1728982856842,1.5,65815.0,65814.0,0.256405]
[1728982857558,1.5,65815.0,65814.0,0.42376577]
[1728982858043,1.5,65815.0,65814.0,0.328305]
[1728982858247,0.076398,65821.0,65820.0,0.075998]
[1728982858447,0.076398,65821.0,65820.0,0.076398]
[1728982858751,1.5004,65821.0,65820.0,0.076398]
[1728982860050,1.70481713,65821.0,65818.0,0.0586656]
[1728982860250,0.20441713,65820.0,65819.0,0.0454343]
[1728982860546,0.38443178,65820.0,65819.0,0.0454343]
[1728982860746,0.38443178,65820.0,65814.0,0.09809814]
[1728982860747,0.38440446,65820.0,65814.0,0.09809814]
[1728982860951,0.256003,65817.0,65814.0,0.02819814]
[1728982861149,0.436804,65815.0,65814.0,0.0014]
[1728982861354,0.64120846,65815.0,65814.0,0.0014]
[1728982861545,0.64120846,65815.0,65814.0,0.0004]
[1728982861746,1.87704846,65815.0,65814.0,0.0004]
[1728982861952,1.94535017,65815.0,65814.0,0.0004]
[1728982862559,3.26535017,65815.0,65814.0,0.0004]
[1728982863358,3.26535017,65815.0,65814.0,0.0014]
[1728982863755,3.25558823,65815.0,65814.0,0.0014]
[1728982864157,3.25558823,65815.0,65814.0,0.0024]
[1728982864556,3.25558823,65815.0,65814.0,0.00123943]
[1728982864758,3.25598823,65815.0,65814.0,0.00123943]
[1728982865259,3.36768652,65815.0,65814.0,0.00123943]
[1728982865456,3.18768652,65815.0,65814.0,0.00123943]
[1728982866964,2.993044,65815.0,65814.0,0.00123943]
[1728982867560,2.393044,65815.0,65814.0,0.00123943]
[1728982867861,1.937204,65815.0,65814.0,0.00123943]
[1728982870065,2.993044,65815.0,65814.0,0.00123943]
[1728982870466,3.173044,65815.0,65814.0,0.00123943]
[1728982870669,3.173044,65815.0,65807.0,0.0039]
[1728982870670,0.076012,65808.0,65807.0,0.0039]
[1728982870852,0.616812,65808.0,65807.0,0.0004]
[1728982871359,0.684612,65808.0,65807.0,0.0004]
[1728982871557,2.184612,65808.0,65807.0,0.0004]
[1728982871758,2.184612,65808.0,65807.0,0.076413]
[1728982873662,2.004612,65808.0,65807.0,0.076413]
[1728982875163,2.004612,65808.0,65792.0,0.35890435]
[1728982875164,0.0004,65793.0,65792.0,0.35890435]
[1728982875370,0.15202114,65793.0,65792.0,0.43493535]
[1728982875572,0.0004,65793.0,65792.0,0.43493535]
[1728982875760,0.08155932,65793.0,65792.0,0.43493535]
[1728982876562,0.08155932,65793.0,65792.0,0.44493535]
[1728982876959,0.08155932,65793.0,65792.0,0.45493535]
[1728982877864,0.08155932,65793.0,65792.0,0.48280326]
[1728982882173,0.18,65799.0,65798.0,0.076024]
[1728982882470,0.13435567,65799.0,65798.0,0.2969608]
[1728982883580,0.13435567,65799.0,65798.0,0.3009608]
[1728982883761,0.13435567,65799.0,65798.0,0.3049608]
[1728982884969,0.13435567,65799.0,65798.0,0.10901166]
[1728982885159,0.21037867,65799.0,65798.0,0.20005819]
[1728982885572,0.21037867,65799.0,65798.0,0.10901166]
[1728982885967,0.21037867,65799.0,65798.0,0.20005819]
[1728982887369,0.23832995,65799.0,65798.0,0.10901166]
[1728982887565,0.10397428,65799.0,65798.0,0.0084]
[1728982887777,0.0004,65800.0,65798.0,0.22861201]
[1728982887972,0.1804,65800.0,65799.0,0.29661379]
[1728982888774,0.256422,65800.0,65799.0,0.29661379]
[1728982889169,0.256422,65800.0,65799.0,0.29961379]
[1728982889471,0.256422,65800.0,65799.0,0.30261379]
[1728982890065,0.33476905,65800.0,65799.0,0.082423]
[1728982890378,0.53434187,65800.0,65799.0,0.00634776]
[1728982890568,0.53434187,65800.0,65799.0,0.08237076]
[1728982890768,0.38270052,65800.0,65799.0,0.08237076]
[1728982891575,0.53468076,65800.0,65799.0,0.08237076]
[1728982892181,0.53468076,65800.0,65799.0,0.10992007]
[1728982892479,0.3801879,65800.0,65799.0,0.10992007]
[1728982892880,0.53217217,65800.0,65799.0,0.10992007]
[1728982893080,0.5321722,65800.0,65799.0,0.10992007]
[1728982894170,0.3801879,65800.0,65799.0,0.10992007]
[1728982896278,0.34465505,65800.0,65799.0,0.10992007]
[1728982896676,0.34465505,65800.0,65799.0,0.08237076]
[1728982897078,0.256422,65800.0,65799.0,0.08237076]
[1728982897880,0.3799288,65800.0,65799.0,0.08237076]
[1728982898276,0.256422,65800.0,65799.0,0.30414831]
[1728982899082,0.617222,65800.0,65799.0,0.30414831]
[1728982899690,0.617222,65800.0,65799.0,0.33123516]
[1728982900392,0.617222,65800.0,65799.0,0.20297065]
[1728982900582,0.617222,65800.0,65799.0,0.08237076]
[1728982901892,0.557222,65800.0,65799.0,0.08237076]
[1728982904291,0.557222,65800.0,65799.0,0.30403227]
[1728982908290,0.196422,65800.0,65799.0,0.30403227]
[1728982908491,0.557222,65800.0,65799.0,0.30403227]
[1728982909296,0.557222,65800.0,65799.0,0.41038827]
[1728982909893,0.437222,65800.0,65799.0,0.41038827]
[1728982910099,0.15077707,65800.0,65799.0,0.55024233]
[1728982910399,0.15077707,65800.0,65799.0,0.44388633]
[1728982912188,0.22443701,65800.0,65799.0,0.08237076]
[1728982912401,0.22443701,65800.0,65799.0,0.03106963]
[1728982912402,0.30045901,65800.0,65799.0,0.03106963]
[1728982914493,0.29886088,65800.0,65799.0,0.03106963]
[1728982918404,0.29886088,65800.0,65798.0,0.076424]
[1728982918405,0.076023,65799.0,65798.0,0.076424]
[1728982918605,0.36856686,65799.0,65798.0,0.076424]
[1728982919803,0.36856686,65799.0,65798.0,0.080424]
[1728982920000,0.42468403,65799.0,65798.0,0.080424]
[1728982920403,0.24325319,65799.0,65798.0,0.36512742]
[1728982920600,0.24325319,65799.0,65798.0,0.36912742]
[1728982920789,0.24325319,65799.0,65798.0,0.44515142]
[1728982922099,0.24325319,65799.0,65798.0,0.36912742]
[1728982922697,0.24325319,65799.0,65798.0,0.36912753]
[1728982923097,0.24325319,65799.0,65798.0,0.47558067]
[1728982924001,0.24325319,65799.0,65791.0,0.0035]
[1728982924002,0.076031,65792.0,65791.0,0.0035]
[1728982924200,0.07604,65784.0,65783.0,0.12504972]
[1728982924405,0.07604,65784.0,65778.0,0.12154972]
[1728982924406,0.31604,65784.0,65778.0,0.12154972]
[1728982924611,0.076047,65778.0,65777.0,0.076047]
[1728982924805,0.076047,65778.0,65777.0,0.1370729]
[1728982925104,0.3608,65778.0,65777.0,0.1370729]
[1728982925312,0.436847,65778.0,65777.0,0.1370729]
[1728982925610,0.436847,65778.0,65775.0,0.0739]
[1728982925611,0.076048,65777.0,65775.0,0.0739]
[1728982925807,0.196048,65777.0,65776.0,0.10114352]
[1728982925999,0.196048,65777.0,65771.0,0.076054]
[1728982926194,0.076057,65770.0,65768.0,0.436859]
[1728982926406,0.12,65769.0,65768.0,0.436859]
[1728982927298,0.12,65769.0,65768.0,0.46396511]
[1728982927495,0.12,65769.0,65768.0,0.47796511]
[1728982927496,0.121,65769.0,65768.0,0.47796511]
[1728982927698,0.001,65769.0,65768.0,0.47796511]
[1728982927898,0.001,65769.0,65768.0,0.59796511]
[1728982928107,0.002,65769.0,65768.0,0.61196511]
[1728982928619,0.002,65769.0,65768.0,0.70294618]
[1728982930711,0.002,65769.0,65768.0,0.61196511]
[1728982932513,0.076055,65771.0,65769.0,0.076057]
[1728982932710,0.076055,65771.0,65770.0,0.0004]
[1728982933904,0.077055,65771.0,65770.0,0.0144]
[1728982934106,0.078055,65771.0,65770.0,0.0144]
[1728982934613,0.078055,65771.0,65770.0,0.104456]
[1728982935404,0.078055,65771.0,65770.0,0.18019284]
[1728982936129,0.438855,65771.0,65770.0,0.10413684]
[1728982936303,0.438855,65771.0,65770.0,0.0284]
[1728982936505,0.512955,65771.0,65770.0,0.0284]
[1728982937317,0.152155,65771.0,65770.0,0.0284]
[1728982937613,0.150155,65771.0,65770.0,0.0284]
[1728982938307,0.150155,65771.0,65770.0,0.0144]
[1728982938504,0.150155,65771.0,65770.0,0.0284]
[1728982940405,0.270155,65771.0,65770.0,0.0284]
[1728982940607,0.630955,65771.0,65770.0,0.0284]
[1728982941220,2.130955,65771.0,65770.0,0.0284]
[1728982942805,1.770155,65771.0,65770.0,0.0284]
[1728982943414,1.770155,65771.0,65770.0,0.08898664]
[1728982943631,1.770155,65771.0,65770.0,0.0284]
[1728982945625,1.770155,65771.0,65770.0,0.08898664]
[1728982945824,2.130955,65771.0,65770.0,0.08898664]
[1728982946521,2.010955,65771.0,65770.0,0.0284]
[1728982946917,2.130955,65771.0,65770.0,0.0284]
[1728982947118,1.770155,65771.0,65770.0,0.0284]
[1728982947321,1.650155,65771.0,65770.0,0.0284]
[1728982947513,1.770155,65771.0,65770.0,0.0284]
[1728982947826,1.650155,65771.0,65770.0,0.0284]
[1728982948124,1.770155,65771.0,65770.0,0.0284]
[1728982948424,2.130955,65771.0,65770.0,0.0284]
[1728982948823,2.010955,65771.0,65770.0,0.0284]
[1728982949016,1.650155,65771.0,65770.0,0.0284]
[1728982949421,2.130955,65771.0,65770.0,0.0284]
[1728982951419,2.010955,65771.0,65770.0,0.0284]
[1728982956131,1.936855,65771.0,65770.0,0.0284]
[1728982956619,1.936855,65771.0,65770.0,0.08903641]
[1728982957022,1.933855,65771.0,65770.0,0.08903641]
[1728982957421,1.933855,65771.0,65770.0,0.12751641]
[1728982957923,1.573055,65771.0,65770.0,0.12751641]
[1728982960225,1.693055,65771.0,65770.0,0.12751641]
[1728982960420,1.693055,65771.0,65770.0,0.1275341]
[1728982960620,1.573055,65771.0,65770.0,0.1275341]
[1728982960828,1.573055,65771.0,65770.0,0.2456851]
[1728982962836,1.693055,65771.0,65770.0,0.2456851]
[1728982963133,1.693055,65771.0,65770.0,0.3217411]
[1728982963833,1.693055,65771.0,65770.0,0.3216412]
[1728982965229,1.693055,65771.0,65770.0,0.32169709]
[1728982965427,1.693055,65771.0,65770.0,0.104456]
[1728982966619,1.693055,65771.0,65770.0,0.0284]
[1728982969729,1.693055,65771.0,65770.0,0.07405156]
[1728982971329,1.693055,65771.0,65770.0,0.0284]
[1728982971532,1.813055,65771.0,65770.0,0.0284]
[1728982971928,1.813055,65771.0,65770.0,0.07405156]
[1728982972334,1.813055,65771.0,65770.0,0.12803574]
[1728982977058,1.813055,65771.0,65770.0,0.21930529]
[1728982977434,1.813055,65771.0,65770.0,0.12803574]
[1728982977630,1.813055,65771.0,65770.0,0.21930083]
[1728982977937,1.813055,65771.0,65770.0,0.21929129]
[1728982978835,1.813055,65771.0,65770.0,0.1280262]
[1728982980141,1.813055,65771.0,65770.0,0.21928264]
[1728982980441,1.73042509,65771.0,65770.0,0.0284]
[1728982981544,1.85042509,65771.0,65770.0,0.0284]
[1728982981843,1.73042509,65771.0,65770.0,0.0284]
[1728982982046,1.85042509,65771.0,65770.0,0.0284]
[1728982982241,1.61042509,65771.0,65770.0,0.0284]
[1728982982443,1.73042509,65771.0,65770.0,0.0284]
[1728982982942,1.73042594,65771.0,65770.0,0.0284]
[1728982983548,1.85042594,65771.0,65770.0,0.0284]
[1728982987647,1.813055,65771.0,65770.0,0.12802256]
[1728982992252,2.173855,65771.0,65770.0,0.12802256]
[1728982995352,2.173855,65771.0,65770.0,0.10443216]
[1728982995552,2.173855,65771.0,65770.0,0.20409168]
[1728982996051,2.053855,65771.0,65770.0,0.19009168]
[1728982996358,2.175855,65771.0,65770.0,0.09243216]
[1728982996552,2.175855,65771.0,65770.0,0.19212082]
[1728982996553,2.055855,65771.0,65770.0,0.19212082]
[1728982996947,1.935855,65771.0,65770.0,0.11608866]
[1728982997148,1.935855,65771.0,65770.0,0.20712703]
[1728982997462,2.055855,65771.0,65770.0,0.11587059]
[1728982999552,2.055855,65771.0,65770.0,0.20712703]
[1728983000058,2.055855,65771.0,65770.0,0.11587059]
[1728983000654,2.055855,65771.0,65770.0,0.23446962]
[1728983001149,2.055855,65771.0,65770.0,0.11587059]
[1728983002253,2.055855,65771.0,65770.0,0.20716276]
[1728983002554,2.09330809,65771.0,65770.0,0.0164]
[1728983005757,2.13678824,65771.0,65770.0,0.0164]
[1728983006759,2.13691902,65771.0,65770.0,0.0164]
[1728983008663,2.09336646,65771.0,65770.0,0.0164]
[1728983010463,2.055855,65771.0,65770.0,0.11603235]
[1728983011194,1.575055,65771.0,65770.0,0.31208835]
[1728983011359,1.575055,65771.0,65770.0,0.31076128]
[1728983011559,1.575055,65771.0,65770.0,0.31041959]
[1728983014067,1.695055,65771.0,65770.0,0.23436359]
[1728983014367,1.695055,65771.0,65770.0,0.11583768]
[1728983014760,2.055855,65771.0,65770.0,0.11583768]
[1728983016371,2.055855,65771.0,65770.0,0.11596596]
[1728983017372,2.055855,65771.0,65770.0,0.11620131]
[1728983017672,2.055855,65771.0,65770.0,0.0164]
[1728983017860,2.0930186,65771.0,65770.0,0.0164]
[1728983018055,2.0930186,65771.0,65761.0,0.0035]
[1728983018056,0.076065,65762.0,65761.0,0.0035]
[1728983018260,0.076065,65762.0,65759.0,0.04562122]
[1728983018261,0.076068,65760.0,65759.0,0.04562122]
[1728983018461,0.07607,65758.0,65757.0,0.04562122]
[1728983018685,0.4808,65762.0,65756.0,0.04562122]
[1728983018686,0.196071,65757.0,65756.0,0.04562122]
[1728983018873,0.076072,65756.0,65755.0,0.04562122]
[1728983019061,0.076074,65755.0,65754.0,0.04562122]
[1728983019376,0.196074,65755.0,65754.0,0.04562122]
[1728983019571,1.696074,65755.0,65754.0,0.04562122]
[1728983019869,1.696074,65755.0,65754.0,0.12169622]
[1728983020264,1.696074,65755.0,65754.0,0.076075]
[1728983020567,1.697074,65755.0,65754.0,0.090075]
[1728983022066,1.697074,65755.0,65754.0,0.095075]
[1728983022067,1.698074,65755.0,65754.0,0.095075]
[1728983025666,1.698074,65755.0,65754.0,0.19496912]
[1728983026773,1.698074,65755.0,65754.0,0.28609275]
[1728983028670,1.698074,65755.0,65754.0,0.11889412]
[1728983030766,1.698074,65755.0,65754.0,0.11885745]
[1728983032776,1.77755512,65755.0,65754.0,0.019]
[1728983033075,1.70148112,65755.0,65753.0,0.01894877]
[1728983033277,0.20418332,65754.0,65753.0,0.076075]
[1728983034678,0.20418332,65754.0,65753.0,0.084075]
[1728983035782,0.20518332,65754.0,65753.0,0.04500025]
[1728983036375,0.20518332,65754.0,65753.0,0.03700025]
[1728983036571,0.20618332,65754.0,65753.0,0.04500025]
[1728983036974,0.26214537,65754.0,65753.0,0.04500025]
[1728983040779,1.5,65755.0,65753.0,0.26471366]
[1728983041082,1.5,65755.0,65754.0,0.22011341]
[1728983041677,1.576074,65755.0,65754.0,0.29618841]
[1728983041883,1.578074,65755.0,65754.0,0.29618841]
[1728983042472,1.501,65755.0,65754.0,0.29618841]
[1728983042677,1.501,65755.0,65754.0,0.29716964]
[1728983042678,0.001,65755.0,65754.0,0.29716964]
[1728983042881,0.001,65755.0,65754.0,0.41623726]
[1728983043076,0.002,65755.0,65754.0,0.42423726]
[1728983047483,0.078074,65755.0,65754.0,0.42423726]
[1728983047685,0.198074,65755.0,65754.0,0.18516964]
[1728983052387,0.002,65755.0,65754.0,0.30516964]
[1728983054196,0.002,65755.0,65754.0,0.75724335]
[1728983054493,0.002,65755.0,65754.0,0.66596964]
[1728983054690,0.13139453,65755.0,65754.0,0.565275]
[1728983055193,0.26766522,65755.0,65754.0,0.565275]
[1728983055396,0.26790923,65755.0,65754.0,0.565275]
[1728983056292,0.13139453,65755.0,65754.0,0.48915377]
[1728983056491,0.13139453,65755.0,65754.0,0.4888]
[1728983057589,0.13139453,65755.0,65754.0,0.564875]
[1728983058091,0.13139453,65755.0,65754.0,0.436875]
[1728983058294,0.13139453,65755.0,65754.0,0.556875]
[1728983059398,0.13139453,65755.0,65754.0,0.436875]
[1728983059585,0.20746853,65755.0,65754.0,0.436875]
[1728983059783,0.20746853,65755.0,65754.0,0.076075]
[1728983060284,0.20746853,65755.0,65748.0,0.387916]
[1728983060487,0.196081,65749.0,65748.0,0.463998]
[1728983060796,0.32547553,65749.0,65748.0,0.103198]
[1728983060982,0.49231309,65749.0,65748.0,0.103198]
[1728983061395,0.49231309,65749.0,65748.0,0.104198]
[1728983061596,0.38045274,65749.0,65748.0,0.077082]
[1728983062082,0.44805274,65749.0,65748.0,0.076082]
[1728983062284,0.44905274,65749.0,65748.0,0.076082]
[1728983062484,0.45005274,65749.0,65748.0,0.076082]
[1728983062793,0.265681,65749.0,65748.0,0.29666014]
[1728983066886,0.265681,65749.0,65748.0,0.17773908]
[1728983067499,0.265681,65749.0,65748.0,0.17771866]
[1728983069894,0.30056908,65749.0,65748.0,0.076082]
[1728983074895,0.38776199,65749.0,65745.0,0.36075241]
[1728983075099,0.196084,65746.0,65745.0,0.36075241]
[1728983075305,0.31816499,65746.0,65745.0,0.36075241]
[1728983075801,0.46981271,65746.0,65745.0,0.43683741]
[1728983076194,0.46981271,65746.0,65745.0,0.36075241]
[1728983076707,0.31816499,65746.0,65745.0,0.36175241]
[1728983077303,0.31816499,65746.0,65744.0,0.076086]
[1728983077304,0.24308099,65746.0,65744.0,0.076086]
[1728983077510,0.19816599,65745.0,65744.0,0.076086]
[1728983077807,0.02923249,65746.0,65744.0,0.29959645]
[1728983078012,0.02923249,65746.0,65745.0,0.22351045]
[1728983078400,0.02923249,65746.0,65745.0,0.22391045]
[1728983079113,0.10531649,65746.0,65745.0,0.22391045]
[1728983079311,0.10431649,65746.0,65745.0,0.22391045]
[1728983079510,0.10531649,65746.0,65745.0,0.22391045]
[1728983079807,0.22531649,65746.0,65745.0,0.17885906]
[1728983080112,0.197084,65746.0,65745.0,0.17885906]
[1728983080313,0.198084,65746.0,65745.0,0.17985906]
[1728983080907,0.198084,65746.0,65745.0,0.27101535]
[1728983081303,0.198084,65746.0,65745.0,0.17985906]
[1728983081511,0.002,65746.0,65745.0,0.17985906]
[1728983081905,0.002,65746.0,65745.0,0.17889723]
[1728983082712,0.002,65746.0,65745.0,0.27005025]
[1728983083813,0.002,65746.0,65745.0,0.17889723]
[1728983085209,0.078084,65746.0,65745.0,0.17889723]
[1728983086612,0.078084,65746.0,65745.0,0.10281223]
[1728983087113,0.438884,65746.0,65745.0,0.10281223]
[1728983087413,0.078084,65746.0,65745.0,0.10281223]
[1728983089517,0.078084,65746.0,65745.0,0.2240588]
[1728983089914,0.078084,65746.0,65745.0,0.17889723]
[1728983091126,0.122,65746.0,65745.0,0.17889723]
[1728983091421,0.002,65746.0,65745.0,0.30006191]
[1728983092918,0.002,65746.0,65745.0,0.077485]
[1728983097317,0.03711604,65746.0,65745.0,0.077485]
[1728983099021,0.002,65746.0,65745.0,0.146785]
[1728983099927,0.002,65746.0,65745.0,0.24814443]
[1728983100315,0.002,65746.0,65745.0,0.33937602]
[1728983100618,0.002,65746.0,65745.0,0.24814443]
[1728983102718,0.002,65746.0,65745.0,0.36814443]
[1728983103922,0.002,65746.0,65745.0,0.72894443]
[1728983104431,0.002,65746.0,65745.0,0.72886691]
[1728983108026,0.002,65746.0,65745.0,0.627585]
[1728983109817,0.002,65746.0,65745.0,0.438285]
[1728983110231,0.078084,65746.0,65745.0,0.438285]
[1728983110433,0.03713697,65746.0,65745.0,0.438285]
[1728983111032,0.15713697,65746.0,65745.0,0.438285]
[1728983113533,0.122,65746.0,65745.0,0.438285]
[1728983113722,0.15700874,65746.0,65745.0,0.438285]
[1728983115031,0.12,65746.0,65745.0,0.36436469]
[1728983115344,0.14338,65750.0,65749.0,0.076081]
[1728983115519,0.14338,65750.0,65749.0,0.29897268]
[1728983116433,0.14438,65750.0,65749.0,0.29897268]
[1728983116626,0.26438,65750.0,65749.0,0.29897268]
[1728983117527,0.001,65750.0,65749.0,0.29757695]
[1728983118127,0.002,65750.0,65749.0,0.078481]
[1728983118327,0.002,65750.0,65749.0,0.29825751]
[1728983119222,0.002,65750.0,65749.0,0.41825751]
[1728983119818,0.002,65750.0,65749.0,0.4459086]
[1728983120428,0.0106,65758.0,65757.0,0.076071]
[1728983120736,0.3608,65765.0,65761.0,0.076067]
[1728983121030,1.643865,65762.0,65761.0,0.29624351]
[1728983122134,1.643865,65762.0,65761.0,0.22017651]
[1728983122336,1.644865,65762.0,65761.0,0.11597651]
[1728983122522,1.645865,65762.0,65761.0,0.11797651]
[1728983122725,1.645865,65762.0,65761.0,0.10366476]
[1728983122922,1.83652025,65762.0,65752.0,0.3608]
[1728983123128,0.12,65753.0,65752.0,0.32237693]
[1728983123427,0.20163877,65753.0,65752.0,0.32237693]
[1728983123630,0.25158406,65753.0,65752.0,0.32237693]
[1728983123835,0.31158406,65753.0,65752.0,0.32237693]
[1728983124033,0.13158406,65753.0,65752.0,0.39845393]
[1728983124238,0.31158406,65753.0,65752.0,0.39845393]
[1728983124532,0.13158406,65753.0,65752.0,0.40045393]
[1728983124732,0.13258406,65753.0,65752.0,0.40245393]
[1728983125234,0.13358406,65753.0,65752.0,0.40245393]
[1728983126031,0.20658988,65753.0,65752.0,0.40245393]
[1728983126226,0.30039652,65753.0,65752.0,0.40245393]
[1728983126427,0.13358406,65753.0,65752.0,0.40245393]
[1728983127045,0.08363877,65753.0,65752.0,0.40245393]
[1728983128843,0.0106,65761.0,65760.0,0.256068]
[1728983129144,0.02678663,65768.0,65760.0,0.256068]
[1728983129145,0.0106,65768.0,65767.0,0.07606]
[1728983129341,0.13646958,65773.0,65767.0,0.43686]
[1728983129342,0.256053,65773.0,65767.0,0.43686]
[1728983129641,1.5,65768.0,65767.0,0.43726]
[1728983130038,1.5,65768.0,65767.0,0.5372086]
[1728983130746,0.078,65775.0,65774.0,0.076052]
[1728983131043,1.5674,65775.0,65774.0,0.17626442]
[1728983131347,1.5674,65775.0,65774.0,0.25211742]
[1728983131541,1.5674,65775.0,65774.0,0.076452]
[1728983131742,1.64345,65775.0,65774.0,0.076452]
[1728983131942,1.64345,65775.0,65774.0,0.078452]
[1728983132140,1.64345,65775.0,65774.0,0.080452]
[1728983134137,1.64345,65775.0,65774.0,0.0044]
[1728983134335,2.69957,65775.0,65771.0,0.075853]
[1728983134543,0.076055,65771.0,65770.0,0.075853]
[1728983134739,0.076055,65771.0,65767.0,0.0026]
[1728983134740,0.18,65771.0,65768.0,0.075853]
[1728983134941,0.076057,65769.0,65768.0,0.07580654]
[1728983135143,0.076057,65769.0,65768.0,0.17542421]
[1728983135637,0.076057,65769.0,65768.0,0.15185761]
[1728983135837,0.076057,65769.0,65768.0,0.1754841]
[1728983136037,0.076057,65769.0,65767.0,0.0004]
[1728983136038,0.076059,65768.0,65767.0,0.0761977]
[1728983136251,0.142159,65768.0,65767.0,0.0004]
[1728983137448,0.142159,65768.0,65767.0,0.07646]
[1728983137836,0.143159,65768.0,65767.0,0.07646]
[1728983138448,0.144159,65768.0,65767.0,0.07646]
[1728983140142,0.078059,65768.0,65767.0,0.0094]
[1728983140444,0.078059,65768.0,65767.0,0.08546]
[1728983140651,0.077059,65768.0,65767.0,0.08546]
[1728983140944,0.078059,65768.0,65767.0,0.09346]
[1728983141646,0.001,65768.0,65767.0,0.08446]
[1728983141841,0.002,65768.0,65767.0,0.09246]
[1728983145053,0.0821784,65768.0,65767.0,0.09246]
[1728983145249,0.2621784,65768.0,65767.0,0.09246]
[1728983145444,0.31125395,65768.0,65763.0,0.25537597]
[1728983145748,0.18729648,65767.0,65766.0,0.076061]
[1728983146444,0.18729648,65767.0,65763.0,0.16399662]
[1728983146647,0.12925395,65766.0,65763.0,0.17299662]
[1728983146956,0.12925395,65765.0,65764.0,0.076063]
[1728983148147,0.13025395,65765.0,65764.0,0.085063]
[1728983148545,0.13125395,65765.0,65764.0,0.085063]
[1728983149449,0.03910165,65765.0,65764.0,0.265063]
[1728983149651,0.13125395,65765.0,65764.0,0.265063]
[1728983150657,0.13125395,65765.0,65764.0,1.321223]
[1728983150850,0.2828881,65765.0,65764.0,1.321223]
[1728983151153,0.24895922,65765.0,65764.0,1.321223]
[1728983151451,0.13125395,65765.0,65764.0,1.321223]
[1728983151646,0.16678082,65766.0,65764.0,1.24516]
[1728983151854,0.0106,65774.0,65770.0,0.076056]
[1728983152054,0.13647901,65777.0,65776.0,0.076049]
[1728983152245,0.13647901,65777.0,65776.0,0.256449]
[1728983153254,1.5,65778.0,65777.0,0.076048]
[1728983153441,1.5,65778.0,65777.0,0.1785831]
[1728983153646,1.5,65778.0,65777.0,0.1789831]
[1728983155257,1.502,65778.0,65777.0,0.1789831]
[1728983155461,1.504,65778.0,65777.0,0.1789831]
[1728983155956,1.580047,65778.0,65777.0,0.1789831]
[1728983156149,1.580047,65778.0,65777.0,0.15234432]
[1728983157449,1.580047,65778.0,65777.0,0.07629632]
[1728983157656,1.580047,65778.0,65777.0,0.0004]
[1728983158945,1.580047,65778.0,65777.0,0.076448]
[1728983159151,1.580047,65778.0,65777.0,0.0004]
[1728983160155,1.61864387,65778.0,65777.0,0.0004]
[1728983160655,1.61864387,65778.0,65777.0,0.076448]
[1728983160850,1.580047,65778.0,65777.0,0.076448]
[1728983161268,1.760047,65778.0,65777.0,0.076448]
[1728983161860,1.79355577,65778.0,65777.0,0.076448]
[1728983162057,1.8324907,65778.0,65777.0,0.076448]
[1728983163455,1.79355577,65778.0,65777.0,0.076448]
[1728983163654,1.79355577,65778.0,65777.0,0.0004]
[1728983163959,1.83252673,65778.0,65777.0,0.0004]
[1728983164160,1.80316008,65778.0,65776.0,0.00058046]
[1728983164357,0.3497409,65777.0,65773.0,0.02723991]
[1728983164559,0.18,65774.0,65773.0,0.10329291]
[1728983164864,0.29916008,65774.0,65773.0,0.10329291]
[1728983165361,0.73601255,65774.0,65773.0,0.0004]
[1728983165560,0.79056182,65774.0,65773.0,0.0004]
[1728983165855,0.79056182,65774.0,65773.0,0.0014]
[1728983166764,0.79056182,65774.0,65773.0,0.0034]
[1728983168163,0.076052,65774.0,65773.0,0.18288552]
[1728983169661,0.5408,65775.0,65774.0,0.076052]
[1728983169864,0.5408,65775.0,65774.0,0.17988452]
[1728983169865,0.3608,65775.0,65774.0,0.17988452]
[1728983170757,0.139849,65777.0,65774.0,0.10483252]
[1728983171066,0.500649,65777.0,65776.0,0.076449]
[1728983171256,0.500649,65777.0,65776.0,0.17988152]
[1728983172564,0.500649,65777.0,65776.0,0.10383252]
[1728983172763,0.501649,65777.0,65776.0,0.10383252]
[1728983173061,0.501649,65777.0,65776.0,0.0763246]
[1728983173263,0.501649,65777.0,65776.0,0.10383665]
[1728983173963,0.502649,65777.0,65776.0,0.10383665]
[1728983174264,0.502649,65777.0,65776.0,0.07607098]
[1728983174766,0.502649,65777.0,65776.0,0.07593433]
[1728983174974,0.076054,65772.0,65771.0,0.09121729]
[1728983175266,0.076061,65766.0,65765.0,0.079961]
[1728983175567,0.256061,65766.0,65765.0,0.076461]
[1728983176055,0.616861,65766.0,65765.0,0.0004]
[1728983176258,0.7208,65766.0,65760.0,0.0004]
[1728983176455,0.256067,65761.0,65760.0,0.0004]
[1728983177457,0.436067,65761.0,65760.0,0.0004]
[1728983177659,0.436067,65761.0,65752.0,0.0035]
[1728983177660,0.256076,65753.0,65752.0,0.079577]
[1728983177962,0.256076,65753.0,65745.0,0.0004]
[1728983177963,0.076079,65750.0,65745.0,0.0004]
[1728983178167,0.256079,65750.0,65745.0,0.0004]
[1728983178466,1.756079,65750.0,65745.0,0.0004]
[1728983179052,0.076084,65746.0,65745.0,0.0004]
[1728983179253,0.256084,65746.0,65745.0,0.0004]
[1728983179872,0.256084,65746.0,65745.0,0.04588069]
[1728983180366,0.256084,65746.0,65745.0,0.0004]
[1728983181658,1.757084,65746.0,65745.0,0.0014]
[1728983182560,1.758084,65746.0,65745.0,0.0034]
[1728983182971,1.938084,65746.0,65745.0,0.0034]
[1728983183172,2.3260591,65746.0,65745.0,0.003]
[1728983185571,2.1460591,65746.0,65745.0,0.003]
[1728983188270,2.1460591,65746.0,65745.0,0.079085]
[1728983189378,2.1460591,65746.0,65745.0,0.003]
[1728983190767,2.1460591,65746.0,65745.0,0.079085]
[1728983190973,2.1460591,65746.0,65745.0,0.003]
[1728983191972,2.0699751,65746.0,65745.0,0.079085]
[1728983193369,0.5699751,65746.0,65745.0,0.079085]
[1728983194370,2.02429162,65746.0,65745.0,0.079085]